bitfinex/quotes_BTCUSD_20250410
["timestamp","ask_amount","ask_price","bid_price","bid_amount"]
[1744275071217,0.25998789,81599.0,81596.0,0.27841467]
[1744275071420,0.25998789,81599.0,81598.0,0.06264085]
[1744275071619,0.25998789,81599.0,81598.0,0.18319467]
[1744275072236,0.51734389,81599.0,81598.0,0.18319467]
[1744275072438,0.27224289,81599.0,81596.0,0.14332]
[1744275072661,0.25998789,81599.0,81597.0,0.01454085]
[1744275072906,0.25998789,81599.0,81597.0,0.15786085]
[1744275073181,0.50508889,81599.0,81597.0,0.15786085]
[1744275073396,0.257359,81598.0,81597.0,0.01454085]
[1744275074473,0.245131,81589.0,81588.0,0.01454085]
[1744275074659,0.245131,81589.0,81588.0,0.13509467]
[1744275074842,0.257387,81589.0,81588.0,0.13509467]
[1744275075458,0.257387,81589.0,81588.0,0.27837467]
[1744275075663,0.257387,81589.0,81588.0,0.14328]
[1744275076672,0.506487,81589.0,81588.0,0.14328]
[1744275078039,0.245176,81574.0,81573.0,0.01454185]
[1744275078236,0.257434,81574.0,81573.0,0.27837567]
[1744275079266,0.245161,81579.0,81576.0,0.25971085]
[1744275079472,0.257424,81578.0,81577.0,0.13509467]
[1744275079901,0.257424,81578.0,81573.0,1e-06]
[1744275079902,0.257434,81574.0,81573.0,1e-06]
[1744275080476,0.457434,81574.0,81573.0,1e-06]
[1744275083486,0.257434,81574.0,81573.0,1e-06]
[1744275084003,0.26899714,81574.0,81573.0,1e-06]
[1744275086817,0.31429714,81574.0,81573.0,1e-06]
[1744275087220,0.33525289,81574.0,81573.0,1e-06]
[1744275087438,0.53525289,81574.0,81573.0,1e-06]
[1744275089463,0.79524078,81574.0,81573.0,1e-06]
[1744275089640,0.77428503,81574.0,81573.0,1e-06]
[1744275090163,0.72898503,81574.0,81573.0,1e-06]
[1744275090528,1.11758503,81574.0,81573.0,1e-06]
[1744275090726,1.24313885,81574.0,81573.0,1e-06]
[1744275091081,1.36357144,81574.0,81573.0,1e-06]
[1744275091369,1.48231144,81574.0,81573.0,1e-06]
[1744275091510,1.88231144,81574.0,81573.0,1e-06]
[1744275091932,1.88231144,81574.0,81551.0,0.14312]
[1744275091933,0.597504,81552.0,81551.0,0.14312]
[1744275092132,0.91546737,81552.0,81551.0,0.00042548]
[1744275092573,1.51546737,81552.0,81551.0,0.00042548]
[1744275094612,1.63589996,81552.0,81551.0,0.00042548]
[1744275095054,1.63589996,81552.0,81540.0,0.0003372]
[1744275095055,0.597538,81541.0,81540.0,0.0003372]
[1744275095169,0.597538,81541.0,81531.0,0.004]
[1744275095170,0.245302,81532.0,81531.0,0.004]
[1744275095381,0.245302,81532.0,81530.0,0.000337]
[1744275095382,0.59757,81531.0,81530.0,0.000337]
[1744275095583,0.59757,81531.0,81530.0,4.7e-07]
[1744275095584,0.84811727,81531.0,81530.0,4.7e-07]
[1744275095777,1.26428225,81531.0,81530.0,4.7e-07]
[1744275096085,1.29765557,81531.0,81530.0,4.7e-07]
[1744275096295,1.22411557,81531.0,81530.0,4.7e-07]
[1744275096495,1.22411557,81531.0,81501.0,0.004]
[1744275096496,0.257661,81502.0,81501.0,0.004]
[1744275096845,0.257661,81502.0,81501.0,0.00410447]
[1744275096846,0.34505568,81502.0,81501.0,0.00410447]
[1744275097070,0.28079225,81502.0,81501.0,0.00410447]
[1744275097427,0.51416557,81502.0,81501.0,0.00410447]
[1744275097628,0.48079225,81502.0,81501.0,0.00410447]
[1744275099230,0.46879819,81502.0,81501.0,0.13919914]
[1744275099648,0.01113719,81502.0,81501.0,0.13919914]
[1744275099873,0.01113719,81502.0,81501.0,0.15146814]
[1744275100153,0.212268,81509.0,81504.0,0.01454085]
[1744275100565,0.2,81509.0,81506.0,0.01454085]
[1744275100573,0.2,81513.0,81511.0,0.01454085]
[1744275100736,0.2,81513.0,81512.0,0.14736267]
[1744275101347,0.2,81513.0,81512.0,0.19696267]
[1744275101552,0.012265,81527.0,81512.0,0.24476267]
[1744275101747,0.012264,81535.0,81525.0,0.01454085]
[1744275101949,0.245303,81532.0,81527.0,0.01454085]
[1744275102131,0.245308,81530.0,81528.0,0.12055382]
[1744275102581,0.012265,81529.0,81528.0,0.13509467]
[1744275102964,0.257568,81532.0,81528.0,0.12055382]
[1744275103163,0.012264,81533.0,81528.0,0.12055382]
[1744275103164,0.012264,81533.0,81528.0,0.12065829]
[1744275103313,0.012265,81531.0,81528.0,0.12065829]
[1744275103513,0.257573,81530.0,81528.0,0.12065829]
[1744275103754,0.012265,81529.0,81528.0,0.12065829]
[1744275105073,0.245309,81531.0,81528.0,0.36597229]
[1744275105248,0.257574,81532.0,81528.0,0.12065829]
[1744275105465,0.012265,81531.0,81528.0,0.12065829]
[1744275105672,0.257574,81530.0,81528.0,0.12065829]
[1744275106073,0.245311,81529.0,81528.0,0.12065829]
[1744275106480,0.257574,81530.0,81528.0,0.12065829]
[1744275106679,0.245309,81530.0,81528.0,0.12065829]
[1744275107018,0.245311,81529.0,81528.0,0.12065829]
[1744275108669,0.257576,81529.0,81528.0,0.12065829]
[1744275109676,0.245311,81529.0,81528.0,0.12065829]
[1744275110122,0.257576,81529.0,81528.0,0.12065829]
[1744275111639,0.257576,81529.0,81528.0,0.00010447]
[1744275112481,0.457576,81529.0,81528.0,0.00010447]
[1744275114046,0.46862803,81529.0,81528.0,0.00010447]
[1744275115703,0.26862803,81529.0,81528.0,0.00010447]
[1744275117526,0.46862803,81529.0,81528.0,0.00010447]
[1744275118960,0.257592,81524.0,81523.0,0.13830447]
[1744275119462,0.26864369,81524.0,81523.0,0.13830447]
[1744275119690,0.60864369,81524.0,81523.0,0.13830447]
[1744275120236,0.86863158,81524.0,81523.0,0.13830447]
[1744275120666,0.86863158,81524.0,81516.0,1.26228]
[1744275120667,0.257614,81517.0,81516.0,1.26228]
[1744275121154,0.26860049,81517.0,81516.0,1.26228]
[1744275123551,0.25633349,81517.0,81516.0,1.30908]
[1744275123730,0.26860049,81517.0,81516.0,1.30908]
[1744275123936,0.26860049,81517.0,81516.0,0.0468]
[1744275124149,0.01098649,81517.0,81516.0,0.56797082]
[1744275124356,0.2,81521.0,81517.0,0.012267]
[1744275124557,0.245331,81523.0,81519.0,0.245338]
[1744275124883,0.245333,81522.0,81520.0,0.12055382]
[1744275125077,0.245331,81523.0,81520.0,0.12055382]
[1744275125679,0.245319,81527.0,81523.0,0.245329]
[1744275126086,0.012266,81526.0,81521.0,0.245334]
[1744275126288,0.257595,81525.0,81522.0,0.36588582]
[1744275126483,0.257584,81527.0,81522.0,0.12055382]
[1744275127434,0.245323,81525.0,81523.0,0.245329]
[1744275127647,0.245323,81525.0,81524.0,0.12055382]
[1744275127982,0.245321,81526.0,81524.0,0.12055382]
[1744275128970,0.01104026,81525.0,81524.0,0.12055382]
[1744275129375,0.01104026,81525.0,81524.0,0.36587982]
[1744275129581,0.01104026,81525.0,81524.0,0.37814582]
[1744275130050,0.245306,81531.0,81528.0,0.245312]
[1744275130247,0.245315,81528.0,81525.0,0.245322]
[1744275130444,0.245318,81527.0,81525.0,0.12055382]
[1744275130675,0.245318,81527.0,81516.0,0.292148]
[1744275130676,0.245341,81520.0,81516.0,0.292148]
[1744275130879,0.245341,81519.0,81517.0,0.26355382]
[1744275131078,0.245341,81519.0,81517.0,0.143]
[1744275131079,0.257611,81518.0,81517.0,0.143]
[1744275131478,0.257611,81518.0,81509.0,1.2624]
[1744275131479,0.245368,81510.0,81509.0,1.2624]
[1744275131706,0.245368,81510.0,81509.0,1.52608155]
[1744275132687,0.245368,81511.0,81509.0,0.12068155]
[1744275132884,0.257636,81510.0,81509.0,0.00012773]
[1744275133570,0.46996883,81510.0,81509.0,0.00012773]
[1744275133766,0.85746883,81510.0,81509.0,0.00012773]
[1744275134131,0.85746883,81510.0,81495.0,0.0001686]
[1744275134132,0.597661,81502.0,81495.0,0.0001686]
[1744275135648,0.797661,81502.0,81495.0,0.0001686]
[1744275136225,0.91821482,81502.0,81495.0,0.0001686]
[1744275137056,0.797661,81502.0,81495.0,0.0001686]
[1744275137675,1.197661,81502.0,81495.0,0.0001686]
[1744275139544,1.45764889,81502.0,81495.0,0.0001686]
[1744275140073,1.57808148,81502.0,81495.0,0.0001686]
[1744275140282,1.45764889,81502.0,81495.0,0.0001686]
[1744275141219,1.57820271,81502.0,81495.0,0.0001686]
[1744275142059,1.45764889,81502.0,81495.0,0.0001686]
[1744275142694,0.71764889,81502.0,81495.0,0.0001686]
[1744275142895,0.71764889,81502.0,81495.0,0.1554786]
[1744275143159,0.71764889,81502.0,81495.0,0.3886196]
[1744275143542,0.71764889,81502.0,81495.0,0.1432086]
[1744275143941,0.72846367,81502.0,81495.0,0.1432086]
[1744275145970,0.72846367,81502.0,81495.0,0.1554786]
[1744275146140,0.72846367,81502.0,81496.0,0.245408]
[1744275146349,0.47080267,81502.0,81496.0,0.245408]
[1744275146547,0.48307167,81502.0,81497.0,0.245405]
[1744275146748,0.72846367,81502.0,81496.0,0.24541]
[1744275147246,0.72846367,81502.0,81496.0,0.01227]
[1744275147464,0.72846367,81502.0,81497.0,0.245407]
[1744275148037,0.72846367,81502.0,81496.0,0.24541]
[1744275148542,0.72846367,81502.0,81498.0,0.245404]
[1744275148742,0.47080267,81502.0,81500.0,0.245396]
[1744275148947,0.47080267,81502.0,81501.0,0.39675867]
[1744275148948,0.21081478,81502.0,81501.0,0.39675867]
[1744275149168,0.21081478,81502.0,81501.0,0.13909467]
[1744275149577,0.21081478,81502.0,81501.0,0.38448967]
[1744275149973,0.45620678,81502.0,81501.0,0.13909467]
[1744275150293,0.21081478,81502.0,81501.0,0.13909467]
[1744275150493,0.21081478,81502.0,81501.0,0.38448967]
[1744275150808,0.01081478,81502.0,81501.0,0.38448967]
[1744275151040,0.01081478,81502.0,81501.0,0.13909467]
[1744275151159,0.245392,81502.0,81501.0,0.13909467]
[1744275151361,0.01084307,81502.0,81501.0,0.39675867]
[1744275151562,0.0124603,81510.0,81506.0,0.257648]
[1744275151858,0.257642,81508.0,81507.0,0.12055382]
[1744275152063,0.245374,81508.0,81507.0,0.12055382]
[1744275152264,0.2562102,81508.0,81507.0,0.12055382]
[1744275152716,0.2684782,81508.0,81507.0,0.12055382]
[1744275153081,0.2562102,81508.0,81507.0,0.12055382]
[1744275153282,0.2684782,81508.0,81507.0,0.12055382]
[1744275155073,0.0108362,81508.0,81507.0,0.39273967]
[1744275155246,0.0108362,81508.0,81507.0,0.58263967]
[1744275155397,0.00012747,81510.0,81509.0,0.257639]
[1744275155613,0.00012747,81510.0,81509.0,0.77883367]
[1744275156013,0.47200535,81534.0,81533.0,0.304763]
[1744275156368,0.2,81534.0,81533.0,0.31155382]
[1744275156499,0.00911891,81534.0,81533.0,0.31155382]
[1744275156699,0.00911891,81534.0,81533.0,0.55685282]
[1744275156944,0.2,81539.0,81535.0,0.012264]
[1744275157118,0.245284,81538.0,81536.0,0.12055382]
[1744275157519,0.245287,81537.0,81536.0,0.12055382]
[1744275157952,0.257551,81537.0,81536.0,0.12055382]
[1744275158353,0.01251764,81538.0,81536.0,0.12055382]
[1744275158555,0.245285,81538.0,81536.0,0.12055382]
[1744275158776,0.00012769,81539.0,81538.0,0.245284]
[1744275159076,0.00012769,81539.0,81538.0,0.37810182]
[1744275159452,0.00012769,81539.0,81538.0,0.39264267]
[1744275160860,0.25756,81534.0,81533.0,0.15834085]
[1744275161036,0.25756,81534.0,81533.0,0.1438]
[1744275162563,0.45756,81534.0,81533.0,0.1438]
[1744275164773,0.245339,81520.0,81518.0,1.52256185]
[1744275165072,0.245332,81522.0,81520.0,0.01454085]
[1744275165273,0.012266,81522.0,81521.0,0.12055382]
[1744275165496,0.245332,81523.0,81521.0,0.12055382]
[1744275166115,0.245332,81522.0,81521.0,0.12055382]
[1744275166315,0.245319,81527.0,81524.0,0.245326]
[1744275166470,0.24532,81526.0,81523.0,0.245327]
[1744275166676,0.25757,81531.0,81527.0,0.245315]
[1744275166879,0.245309,81530.0,81526.0,0.245319]
[1744275167089,0.245309,81530.0,81526.0,0.36587282]
[1744275167261,0.245311,81529.0,81526.0,0.36587282]
[1744275167845,0.25757,81531.0,81527.0,0.245316]
[1744275168197,0.245304,81532.0,81528.0,0.37813282]
[1744275168408,0.012265,81532.0,81528.0,0.36586782]
[1744275168621,0.245305,81531.0,81528.0,0.36586782]
[1744275168910,0.245308,81530.0,81528.0,0.36586782]
[1744275169814,0.245308,81530.0,81528.0,0.12055382]
[1744275170215,0.245311,81529.0,81528.0,0.12055382]
[1744275170376,0.257567,81532.0,81528.0,0.12055382]
[1744275170711,0.2,81533.0,81528.0,0.13281882]
[1744275170955,0.2,81533.0,81530.0,0.245305]
[1744275171157,0.4453,81533.0,81531.0,0.12055382]
[1744275171317,0.257567,81532.0,81531.0,0.12055382]
[1744275171884,0.245297,81534.0,81531.0,0.12055382]
[1744275172132,0.245297,81534.0,81531.0,0.36585682]
[1744275172282,0.2,81536.0,81535.0,0.257557]
[1744275172482,0.24529,81536.0,81535.0,0.26431382]
[1744275172735,0.24529,81536.0,81535.0,0.13509467]
[1744275172948,0.257573,81530.0,81525.0,0.01454085]
[1744275173144,0.257583,81527.0,81526.0,0.13509467]
[1744275173318,0.012266,81520.0,81516.0,0.02285287]
[1744275173579,0.257604,81520.0,81517.0,0.12055382]
[1744275173885,0.00927809,81519.0,81518.0,0.14376]
[1744275174055,0.00927809,81519.0,81518.0,0.26431382]
[1744275174849,0.00927809,81519.0,81518.0,0.50965782]
[1744275175256,0.245339,81520.0,81518.0,0.50965782]
[1744275175490,0.245339,81520.0,81519.0,0.12055382]
[1744275175676,0.245337,81521.0,81519.0,0.12055382]
[1744275176470,0.245337,81521.0,81520.0,0.14376]
[1744275176675,0.257589,81525.0,81521.0,0.245335]
[1744275176875,0.245332,81522.0,81521.0,0.12055382]
[1744275180470,0.457598,81522.0,81521.0,0.12055382]
[1744275181523,0.445332,81522.0,81521.0,0.12055382]
[1744275181675,0.245329,81523.0,81521.0,0.12055382]
[1744275181857,0.257591,81525.0,81522.0,0.245332]
[1744275182062,0.457591,81526.0,81521.0,0.15572836]
[1744275182279,0.2,81526.0,81523.0,0.245329]
[1744275182491,0.257576,81529.0,81523.0,0.257595]
[1744275182686,0.245313,81529.0,81525.0,0.24532]
[1744275182888,0.2,81530.0,81527.0,0.245317]
[1744275183091,0.2,81530.0,81528.0,0.245314]
[1744275183306,0.2,81530.0,81528.0,0.26822254]
[1744275183506,0.212265,81532.0,81528.0,0.26822254]
[1744275183732,0.212265,81532.0,81528.0,0.02290854]
[1744275183926,0.212265,81532.0,81529.0,0.02290854]
[1744275184234,0.257573,81530.0,81529.0,0.14346236]
[1744275184438,0.2,81532.0,81531.0,0.245305]
[1744275184592,0.2,81533.0,81531.0,0.245304]
[1744275184792,0.2,81533.0,81532.0,0.38879582]
[1744275185064,0.2,81533.0,81532.0,0.41560167]
[1744275185597,0.25998789,81538.0,81532.0,0.41560167]
[1744275185598,0.25998789,81538.0,81537.0,0.245287]
[1744275185805,0.445278,81540.0,81537.0,0.388927]
[1744275185981,0.445278,81540.0,81538.0,0.01147461]
[1744275186223,0.24540869,81539.0,81538.0,0.01147461]
[1744275186450,0.24540869,81539.0,81538.0,0.03441461]
[1744275186747,0.25767269,81539.0,81538.0,0.03441461]
[1744275187362,0.00012769,81539.0,81538.0,0.03441461]
[1744275187607,0.20012769,81539.0,81538.0,0.03441461]
[1744275187728,0.45767269,81539.0,81538.0,0.03441461]
[1744275188341,0.50607269,81539.0,81538.0,0.03441461]
[1744275188544,0.257557,81535.0,81534.0,0.01147461]
[1744275188780,0.26687808,81535.0,81534.0,0.01147461]
[1744275189181,0.26687808,81535.0,81534.0,0.03442725]
[1744275189421,0.52686597,81535.0,81534.0,0.03442725]
[1744275189577,0.52686597,81535.0,81534.0,0.01147461]
[1744275189785,0.257579,81528.0,81527.0,0.14364]
[1744275189965,0.26688483,81528.0,81527.0,0.14364]
[1744275191205,0.26688483,81528.0,81527.0,0.15512075]
[1744275191411,0.00930583,81528.0,81527.0,0.40043775]
[1744275191603,0.2,81528.0,81527.0,0.53325657]
[1744275191816,0.20930583,81528.0,81527.0,0.53325657]
[1744275191994,0.20930583,81528.0,81527.0,0.59709742]
[1744275192200,0.2,81528.0,81527.0,0.59709742]
[1744275192423,0.25998789,81535.0,81527.0,0.59709742]
[1744275192424,0.25998789,81535.0,81534.0,0.25756]
[1744275192627,0.25998789,81535.0,81534.0,0.39265467]
[1744275192828,0.2692846,81535.0,81534.0,0.39265467]
[1744275193032,0.25998789,81535.0,81534.0,0.54777542]
[1744275193271,0.2692846,81535.0,81534.0,0.54777542]
[1744275193789,0.2692846,81535.0,81534.0,0.40413542]
[1744275193987,0.2692846,81535.0,81534.0,0.54777542]
[1744275194561,0.2692846,81535.0,81534.0,0.40413542]
[1744275194909,0.5268416,81535.0,81534.0,0.01148075]
[1744275195592,0.7268416,81535.0,81534.0,0.01148075]
[1744275196698,0.7268416,81535.0,81526.0,0.245319]
[1744275196699,0.7268426,81535.0,81531.0,0.245304]
[1744275196904,0.245297,81534.0,81531.0,0.245304]
[1744275197403,0.00931257,81533.0,81532.0,0.245302]
[1744275197579,0.245298,81534.0,81532.0,0.12055382]
[1744275197749,0.70528189,81535.0,81533.0,0.12055382]
[1744275197954,0.45998789,81535.0,81534.0,0.01454085]
[1744275198173,0.45998789,81535.0,81534.0,0.44155467]
[1744275198613,0.25998789,81535.0,81534.0,0.44155467]
[1744275199037,0.25998789,81535.0,81534.0,0.42929067]
[1744275199715,0.25998789,81535.0,81534.0,0.44076638]
[1744275200007,0.25998789,81535.0,81534.0,0.45303038]
[1744275200226,0.25998789,81535.0,81534.0,0.44155467]
[1744275201033,0.25998789,81535.0,81534.0,0.42929067]
[1744275201224,0.245286,81538.0,81534.0,0.42929067]
[1744275201435,0.245286,81538.0,81536.0,0.01454085]
[1744275201589,0.245286,81538.0,81537.0,0.27873467]
[1744275203988,0.25421446,81538.0,81537.0,0.27873467]
[1744275205752,0.26647846,81538.0,81537.0,0.27873467]
[1744275207815,0.24532,81526.0,81525.0,0.1436]
[1744275208021,0.257586,81526.0,81525.0,0.26415382]
[1744275208179,0.26645212,81526.0,81525.0,0.26415382]
[1744275208965,0.26645212,81526.0,81515.0,0.0455]
[1744275209226,0.257614,81517.0,81516.0,0.26415382]
[1744275209724,0.2541913,81517.0,81516.0,0.27869467]
[1744275211344,0.0088443,81517.0,81516.0,0.27869467]
[1744275211975,0.0088443,81517.0,81516.0,0.52404467]
[1744275212176,0.012265,81532.0,81516.0,0.53631167]
[1744275212399,0.012265,81532.0,81524.0,0.27213285]
[1744275212602,0.257579,81529.0,81524.0,0.37814582]
[1744275212802,0.245319,81527.0,81525.0,0.12055382]
[1744275212998,0.257579,81529.0,81525.0,0.12055382]
[1744275213278,0.245315,81528.0,81525.0,0.12055382]
[1744275213444,0.245315,81528.0,81525.0,0.36587482]
[1744275214038,0.257578,81530.0,81526.0,0.388598]
[1744275214286,0.245314,81528.0,81527.0,0.12055382]
[1744275218370,0.2,81532.0,81527.0,0.12055382]
[1744275218678,0.245305,81531.0,81529.0,0.245309]
[1744275218905,0.00884247,81531.0,81529.0,0.245308]
[1744275219114,0.25414847,81531.0,81529.0,0.245308]
[1744275219395,0.00884247,81531.0,81527.0,0.36586882]
[1744275219625,0.245312,81529.0,81527.0,0.12055382]
[1744275219869,0.245312,81529.0,81527.0,0.36587082]
[1744275220101,0.00883828,81528.0,81527.0,0.12055382]
[1744275221682,0.00883828,81528.0,81527.0,0.37813582]
[1744275221891,0.2,81533.0,81532.0,0.257567]
[1744275222119,0.2,81533.0,81532.0,0.39266167]
[1744275222511,0.000337,81542.0,81538.0,0.257548]
[1744275222708,0.000337,81542.0,81538.0,0.39264267]
[1744275225643,0.000337,81542.0,81538.0,0.53588267]
[1744275227216,0.245278,81540.0,81538.0,0.27833467]
[1744275227515,0.000337,81542.0,81538.0,0.53588267]
[1744275229083,0.257872,81542.0,81538.0,0.27833467]
[1744275229259,0.000337,81542.0,81538.0,0.52361867]
[1744275229500,0.000337,81542.0,81538.0,0.53588267]
[1744275229684,0.00908023,81539.0,81538.0,0.53588267]
[1744275231319,0.00012769,81539.0,81538.0,0.53588267]
[1744275234846,0.00907889,81539.0,81538.0,0.53588267]
[1744275235233,0.00907889,81539.0,81538.0,0.39264267]
[1744275235431,0.00907889,81539.0,81538.0,0.27833467]
[1744275235630,0.00012769,81539.0,81538.0,0.53588267]
[1744275236252,0.00012769,81539.0,81538.0,0.54734277]
[1744275236412,0.00012769,81539.0,81538.0,0.53507877]
[1744275236643,0.00012769,81539.0,81538.0,0.54734277]
[1744275237145,0.00012769,81539.0,81538.0,0.40410277]
[1744275237354,0.00012769,81539.0,81538.0,0.54734277]
[1744275237811,0.00012769,81539.0,81538.0,0.53588267]
[1744275238016,0.00907994,81539.0,81538.0,0.53588267]
[1744275238728,0.00907994,81539.0,81538.0,0.39264267]
[1744275238945,0.00907994,81539.0,81521.0,0.0493]
[1744275239142,0.245307,81531.0,81524.0,0.012266]
[1744275239304,0.257566,81533.0,81527.0,0.012265]
[1744275239485,0.00805332,81530.0,81528.0,0.12055382]
[1744275239841,0.245308,81530.0,81529.0,0.14324]
[1744275240077,0.245333,81522.0,81512.0,0.21929465]
[1744275240273,0.245335,81521.0,81517.0,0.245345]
[1744275240404,0.245332,81522.0,81518.0,0.12055382]
[1744275240405,0.012267,81519.0,81518.0,0.12055382]
[1744275240742,0.212266,81522.0,81521.0,0.257601]
[1744275240743,0.2,81522.0,81521.0,0.257601]
[1744275240943,0.2,81522.0,81521.0,0.37815482]
[1744275241122,0.2,81522.0,81521.0,0.53593567]
[1744275241549,0.445318,81527.0,81523.0,0.245326]
[1744275241724,0.012266,81525.0,81524.0,0.12055382]
[1744275241910,0.257589,81525.0,81524.0,0.26379382]
[1744275246052,0.2,81527.0,81525.0,0.01454085]
[1744275246248,0.445317,81527.0,81526.0,0.12055382]
[1744275246448,0.245312,81529.0,81526.0,0.12055382]
[1744275247097,0.2,81530.0,81527.0,0.01454085]
[1744275247273,0.2,81530.0,81529.0,0.27211685]
[1744275247419,0.2,81530.0,81529.0,0.39267067]
[1744275247627,0.00012769,81539.0,81538.0,0.27208885]
[1744275247862,0.008136,81539.0,81538.0,0.39264267]
[1744275248071,0.00012769,81539.0,81538.0,0.39264267]
[1744275248630,0.008136,81539.0,81538.0,0.13509467]
[1744275249022,0.253417,81539.0,81538.0,0.27761467]
[1744275249228,0.265681,81539.0,81538.0,0.27761467]
[1744275249580,0.465681,81539.0,81538.0,0.27761467]
[1744275250330,0.453417,81539.0,81538.0,0.27761467]
[1744275250552,0.253417,81539.0,81538.0,0.27761467]
[1744275253619,0.008136,81539.0,81538.0,0.53516267]
[1744275253750,0.008136,81539.0,81538.0,0.52289867]
[1744275253952,0.008136,81539.0,81538.0,0.53516267]
[1744275254154,0.00012769,81539.0,81538.0,0.53516267]
[1744275254495,0.00012769,81539.0,81538.0,0.58076267]
[1744275257600,0.00012769,81539.0,81538.0,0.68076267]
[1744275258874,0.00012769,81539.0,81538.0,0.66622182]
[1744275259076,0.00012769,81539.0,81538.0,0.68076267]
[1744275261311,0.00012769,81539.0,81538.0,0.68072267]
[1744275264279,0.00012769,81539.0,81538.0,0.27529782]
[1744275264685,0.00012769,81539.0,81538.0,0.28983867]
[1744275265042,0.00012769,81539.0,81538.0,0.53512267]
[1744275270947,0.00012769,81539.0,81538.0,0.39264267]
[1744275271118,0.00012769,81539.0,81538.0,0.26303382]
[1744275271319,0.25767269,81539.0,81538.0,0.26303382]
[1744275271537,0.25767269,81539.0,81519.0,0.14248]
[1744275271538,0.257589,81525.0,81519.0,0.14248]
[1744275271782,0.26478119,81525.0,81524.0,1.38271382]
[1744275272648,0.46478119,81525.0,81524.0,1.38271382]
[1744275273239,0.46478119,81525.0,81524.0,1.26216]
[1744275276984,0.45251519,81525.0,81524.0,1.26216]
[1744275277398,0.45251519,81525.0,81524.0,0.12055382]
[1744275277600,0.45251519,81525.0,81512.0,0.257629]
[1744275277601,0.012268,81508.0,81501.0,0.004]
[1744275277803,0.257661,81502.0,81501.0,0.12455382]
[1744275277958,0.2647285,81502.0,81501.0,0.26687382]
[1744275278850,0.2647285,81502.0,81501.0,0.26700129]
[1744275279666,0.4647285,81502.0,81501.0,0.26700129]
[1744275280148,0.2070675,81502.0,81501.0,0.26700129]
[1744275280343,0.2070675,81502.0,81501.0,0.53920614]
[1744275280594,0.012268,81512.0,81504.0,0.245383]
[1744275280595,0.245378,81507.0,81504.0,0.245383]
[1744275280822,0.00700365,81506.0,81505.0,0.13509467]
[1744275281895,0.25238365,81506.0,81505.0,0.13509467]
[1744275284068,0.00700365,81506.0,81505.0,0.13509467]
[1744275285029,0.25238365,81506.0,81505.0,0.13509467]
[1744275285164,0.00700365,81506.0,81505.0,0.13509467]
[1744275286586,0.257661,81502.0,81501.0,0.14644747]
[1744275286787,0.26456269,81502.0,81501.0,0.14644747]
[1744275286995,0.26456269,81502.0,81501.0,0.00412747]
[1744275287445,0.46456269,81502.0,81501.0,0.00412747]
[1744275289425,0.47673501,81502.0,81501.0,0.00412747]
[1744275290067,0.7367229,81502.0,81501.0,0.00412747]
[1744275290823,1.1367229,81502.0,81501.0,0.00412747]
[1744275300282,1.4767229,81502.0,81501.0,0.00412747]
[1744275300482,1.0767229,81502.0,81501.0,0.00412747]
[1744275300742,0.7367229,81502.0,81501.0,0.00412747]
[1744275302704,1.1745229,81502.0,81501.0,0.00412747]
[1744275302930,1.29507672,81502.0,81501.0,4.7e-07]
[1744275303132,1.36869672,81502.0,81501.0,4.7e-07]
[1744275303309,1.37369672,81502.0,81501.0,4.7e-07]
[1744275303509,1.49412931,81502.0,81501.0,4.7e-07]
[1744275303728,1.89412931,81502.0,81501.0,4.7e-07]
[1744275304274,1.89712931,81502.0,81501.0,4.7e-07]
[1744275305269,1.77669672,81502.0,81501.0,4.7e-07]
[1744275305471,1.77169672,81502.0,81501.0,4.7e-07]
[1744275311073,1.27169672,81502.0,81501.0,4.7e-07]
[1744275311939,1.52935772,81502.0,81501.0,4.7e-07]
[1744275312126,1.53484247,81502.0,81501.0,4.7e-07]
[1744275312426,1.54709792,81502.0,81501.0,4.7e-07]
[1744275313042,1.44929792,81502.0,81501.0,4.7e-07]
[1744275313417,1.2551241,81502.0,81501.0,4.7e-07]
[1744275313623,1.2521241,81502.0,81501.0,4.7e-07]
[1744275314031,1.2531241,81502.0,81501.0,4.7e-07]
[1744275320328,1.37367792,81502.0,81501.0,4.7e-07]
[1744275320611,1.56968985,81502.0,81501.0,4.7e-07]
[1744275321344,1.49369792,81502.0,81501.0,4.7e-07]
[1744275321913,1.42007792,81502.0,81501.0,4.7e-07]
[1744275322088,1.37367792,81502.0,81501.0,4.7e-07]
[1744275322285,1.2521241,81502.0,81501.0,4.7e-07]
[1744275322672,1.2541241,81502.0,81501.0,4.7e-07]
[1744275323388,1.2521241,81502.0,81501.0,4.7e-07]
[1744275325617,0.50663935,81502.0,81501.0,4.7e-07]
[1744275325814,0.24897835,81502.0,81501.0,0.04880047]
[1744275325981,0.01225545,81502.0,81501.0,0.16935429]
[1744275326181,0.24539,81503.0,81501.0,0.16935429]
[1744275326429,0.245389,81503.0,81502.0,0.12055382]
[1744275326679,0.245383,81507.0,81502.0,0.12055382]
[1744275326926,0.257649,81506.0,81502.0,0.12055382]
[1744275327132,0.012268,81507.0,81502.0,0.13282282]
[1744275327302,0.245389,81503.0,81502.0,0.12055382]
[1744275327921,0.257647,81507.0,81503.0,0.245389]
[1744275328119,0.257661,81502.0,81501.0,0.04880047]
[1744275328318,0.257661,81502.0,81501.0,4.7e-07]
[1744275328739,0.257667,81500.0,81499.0,0.13304047]
[1744275333742,0.245398,81500.0,81499.0,0.25359429]
[1744275335046,0.257667,81500.0,81499.0,0.25359429]
[1744275338046,0.257665,81501.0,81499.0,0.49899529]
[1744275338047,0.245396,81501.0,81499.0,0.49899529]
[1744275338278,0.245396,81501.0,81500.0,0.12055382]
[1744275338616,0.245395,81502.0,81500.0,0.12055382]
[1744275338891,0.245395,81501.0,81500.0,0.13200982]
[1744275339802,0.245395,81501.0,81500.0,0.12055382]
[1744275340397,0.257664,81501.0,81500.0,0.12055382]
[1744275341504,0.257664,81501.0,81500.0,0.26359382]
[1744275342658,0.24539,81503.0,81500.0,0.50899182]
[1744275342865,0.245381,81506.0,81502.0,0.245392]
[1744275343077,0.01196143,81509.0,81500.0,0.50899182]
[1744275343078,0.01196143,81509.0,81507.0,0.245374]
[1744275343318,0.00012764,81509.0,81507.0,0.0477]
[1744275343536,0.00012764,81509.0,81508.0,0.0464]
[1744275343735,0.00012764,81509.0,81508.0,0.18944]
[1744275344080,0.25776664,81509.0,81508.0,0.18944]
[1744275345321,0.00012764,81509.0,81508.0,0.18944]
[1744275345542,0.24549864,81509.0,81508.0,0.18944]
[1744275346659,0.00012764,81509.0,81508.0,0.434814]
[1744275347065,0.24549864,81509.0,81508.0,0.18944]
[1744275347847,0.25776664,81509.0,81508.0,0.18944]